Workbook

Sheet Dashboard
M3: 2023
M4: ENERO | BH4: Empresa - Sector | BI4: Empresa - Sector
A5: Acumulado a: | B5: =M4 -> ENERO | E5: Datos acumulados | G5: Cuota Negocio / Total ASEMPLEO | J5: =empresa_ccaa!L5 -> iEMPRESA | L5: ¿▲"sin" mi Empresa? | BI5: p.p.
A6: Total | B6: Facturación, € | D6: (a) | E6: =J5 -> iEMPRESA | I6: Cuota de Facturación | J6: ∆ | L6: (b) | M6: ∆ (a-b) | BI6: Puntos porcentuales
B7: 2022 | C7: 2023 | D7: % i.a. | E7: =B7 -> 2022 | F7: =C7 -> 2023 | G7: % i.a. | H7: =E7 -> 2022 | I7: =F7 -> 2023 | J7: Dif.P.P. | L7: % i.a. | M7: Dif.P.P. | BH7: Dif. Ritmo | BI7: Importancia Relativa | BL7: Empresa
A8: Nacional | B8: =empresa_ccaa!F12 -> 341571611.5 | C8: =empresa_ccaa!G12 -> 293160939.6 | D8: =((C8/B8)-1) -> -0.1417292019 | E8: =empresa_ccaa!K12 -> 0 | F8: =empresa_ccaa!L12 -> 0 | G8: =IF(E8>0,((F8/E8)-1),"n.a.") -> n.a. | H8: =E8/B8 -> 0 | I8: =F8/C8 -> 0 | J8: =(I8-H8)*100 -> 0 | L8: =((C8-F8)/(B8-E8))-1 -> -0.1417292019 | M8: =(D8-L8)*100 -> 0 | BH8: =IF(G8="n.a.","n.a.",(G8-D8)*100) -> n.a. | BL8: peso | BM8: Comunidad | BN8: % i.a. | BO8: Total_Regional | FU8: =empresa_ccaa!M12-empresa_ccaa!H12 ->  | FW8: criterio_rank
A9: ANDALUCIA | B9: =empresa_ccaa!F13 -> 31994791.66 | C9: =empresa_ccaa!G13 -> 25447253.12 | D9: =((C9/B9)-1) -> -0.2046438875 | E9: =empresa_ccaa!K13 -> 0 | F9: =empresa_ccaa!L13 -> 0 | G9: n.a. | H9: =E9/B9 -> 0 | I9: =F9/C9 -> 0 | J9: =(I9-H9)*100 -> 0 | L9: =((C9-F9)/(B9-E9))-1 -> -0.2046438875 | M9: 0 | BH9: n.a. | BL9: =I9 -> 0 | BM9: =A9 -> ANDALUCIA | BN9: =G9 -> n.a. | BO9: =D9 -> -0.2046438875 | FU9: =empresa_ccaa!M13-empresa_ccaa!H13 ->  | FW9: =IF(BL9=$BL$27,1,0) -> 1
A10: ARAGON | B10: =empresa_ccaa!F14 -> 18279728.4 | C10: =empresa_ccaa!G14 -> 15746627.16 | D10: =((C10/B10)-1) -> -0.1385743366 | E10: =empresa_ccaa!K14 -> 0 | F10: =empresa_ccaa!L14 -> 0 | G10: n.a. | H10: 0 | I10: 0 | J10: 0 | L10: -0.1385743366 | M10: 0 | BH10: n.a. | BL10: 0 | BM10: ARAGON | BN10: n.a. | BO10: -0.1385743366 | FU10: =empresa_ccaa!M14-empresa_ccaa!H14 ->  | FW10: =IF(BL10=$BL$27,1,0) -> 1
A11: ASTURIAS | B11: =empresa_ccaa!F15 -> 6241898.319 | C11: =empresa_ccaa!G15 -> 5006868.253 | D11: -0.1978612921 | E11: =empresa_ccaa!K15 -> 0 | F11: =empresa_ccaa!L15 -> 0 | G11: n.a. | H11: 0 | I11: 0 | J11: 0 | L11: -0.1978612921 | M11: 0 | BH11: n.a. | BL11: 0 | BM11: ASTURIAS | BN11: n.a. | BO11: -0.1978612921 | FU11: =empresa_ccaa!M15-empresa_ccaa!H15 ->  | FW11: =IF(BL11=$BL$27,1,0) -> 1
A12: BALEARES | B12: =empresa_ccaa!F16 -> 890355.6269 | C12: =empresa_ccaa!G16 -> 1013744.442 | D12: 0.1385837421 | E12: =empresa_ccaa!K16 -> 0 | F12: =empresa_ccaa!L16 -> 0 | G12: =IF(E12>0,((F12/E12)-1),"n.a.") -> n.a. | H12: 0 | I12: 0 | J12: 0 | L12: 0.1385837421 | M12: 0 | BH12: n.a. | BL12: 0 | BM12: BALEARES | BN12: n.a. | BO12: 0.1385837421 | FU12: =empresa_ccaa!M16-empresa_ccaa!H16 ->  | FW12: =IF(BL12=$BL$27,1,0) -> 1
A13: CANARIAS | B13: =empresa_ccaa!F17 -> 6338796.559 | C13: =empresa_ccaa!G17 -> 8024745.574 | D13: 0.2659730438 | E13: =empresa_ccaa!K17 -> 0 | F13: =empresa_ccaa!L17 -> 0 | G13: n.a. | H13: 0 | I13: 0 | J13: 0 | L13: 0.2659730438 | M13: 0 | BH13: n.a. | BL13: 0 | BM13: CANARIAS | BN13: n.a. | BO13: 0.2659730438 | FU13: =empresa_ccaa!M17-empresa_ccaa!H17 ->  | FW13: =IF(BL13=$BL$27,1,0) -> 1
A14: CANTABRIA | B14: =empresa_ccaa!F18 -> 8112691.344 | C14: =empresa_ccaa!G18 -> 4634863.366 | D14: -0.4286897936 | E14: =empresa_ccaa!K18 -> 0 | F14: =empresa_ccaa!L18 -> 0 | G14: n.a. | H14: 0 | I14: 0 | J14: 0 | L14: -0.4286897936 | M14: 0 | BH14: n.a. | BL14: 0 | BM14: CANTABRIA | BN14: n.a. | BO14: -0.4286897936 | FU14: =empresa_ccaa!M18-empresa_ccaa!H18 ->  | FW14: =IF(BL14=$BL$27,1,0) -> 1
A15: CASTILLA-LA MANCHA | B15: =empresa_ccaa!F19 -> 24919682.69 | C15: =empresa_ccaa!G19 -> 21531778.52 | D15: -0.1359529416 | E15: =empresa_ccaa!K19 -> 0 | F15: =empresa_ccaa!L19 -> 0 | G15: n.a. | H15: 0 | I15: 0 | J15: 0 | L15: -0.1359529416 | M15: 0 | BH15: n.a. | BL15: 0 | BM15: CASTILLA-LA MANCHA | BN15: n.a. | BO15: -0.1359529416 | FU15: =empresa_ccaa!M19-empresa_ccaa!H19 ->  | FW15: =IF(BL15=$BL$27,1,0) -> 1
A16: CASTILLA Y LEÓN | B16: =empresa_ccaa!F20 -> 17280448.7 | C16: =empresa_ccaa!G20 -> 18316912.31 | D16: 0.05997897526 | E16: =empresa_ccaa!K20 -> 0 | F16: =empresa_ccaa!L20 -> 0 | G16: n.a. | H16: 0 | I16: 0 | J16: =(I16-H16)*100 -> 0 | L16: 0.05997897526 | M16: 0 | BH16: n.a. | BL16: 0 | BM16: CASTILLA Y LEÓN | BN16: n.a. | BO16: 0.05997897526 | FU16: =empresa_ccaa!M20-empresa_ccaa!H20 ->  | FW16: =IF(BL16=$BL$27,1,0) -> 1
A17: CATALUÑA | B17: =empresa_ccaa!F21 -> 74367125.12 | C17: =empresa_ccaa!G21 -> 64251258.34 | D17: -0.1360260568 | E17: =empresa_ccaa!K21 -> 0 | F17: =empresa_ccaa!L21 -> 0 | G17: =IF(E17>0,((F17/E17)-1),"n.a.") -> n.a. | H17: 0 | I17: 0 | J17: =(I17-H17)*100 -> 0 | L17: -0.1360260568 | M17: 0 | BH17: n.a. | BL17: 0 | BM17: CATALUÑA | BN17: n.a. | BO17: -0.1360260568 | FU17: =empresa_ccaa!M21-empresa_ccaa!H21 ->  | FW17: =IF(BL17=$BL$27,1,0) -> 1
A18: COMUNIDAD VALENCIANA | B18: =empresa_ccaa!F22 -> 31732999.55 | C18: =empresa_ccaa!G22 -> 22313844.6 | D18: -0.2968252318 | E18: =empresa_ccaa!K22 -> 0 | F18: =empresa_ccaa!L22 -> 0 | G18: n.a. | H18: 0 | I18: 0 | J18: =(I18-H18)*100 -> 0 | L18: -0.2968252318 | M18: 0 | BH18: n.a. | BL18: 0 | BM18: COMUNIDAD VALENCIANA | BN18: n.a. | BO18: -0.2968252318 | FU18: =empresa_ccaa!M22-empresa_ccaa!H22 ->  | FW18: =IF(BL18=$BL$27,1,0) -> 1
A19: EXTREMADURA | B19: =empresa_ccaa!F23 -> 3460957.673 | C19: =empresa_ccaa!G23 -> 2877148.625 | D19: -0.1686842496 | E19: =empresa_ccaa!K23 -> 0 | F19: =empresa_ccaa!L23 -> 0 | G19: n.a. | H19: 0 | I19: 0 | J19: 0 | L19: -0.1686842496 | M19: 0 | BH19: n.a. | BL19: 0 | BM19: EXTREMADURA | BN19: n.a. | BO19: -0.1686842496 | FU19: =empresa_ccaa!M23-empresa_ccaa!H23 ->  | FW19: =IF(BL19=$BL$27,1,0) -> 1
A20: GALICIA | B20: =empresa_ccaa!F24 -> 12108837.42 | C20: =empresa_ccaa!G24 -> 12049960.81 | D20: -0.004862284573 | E20: =empresa_ccaa!K24 -> 0 | F20: =empresa_ccaa!L24 -> 0 | G20: n.a. | H20: 0 | I20: 0 | J20: 0 | L20: -0.004862284573 | M20: 0 | BH20: n.a. | BL20: 0 | BM20: GALICIA | BN20: n.a. | BO20: -0.004862284573 | FU20: =empresa_ccaa!M24-empresa_ccaa!H24 ->  | FW20: =IF(BL20=$BL$27,1,0) -> 1
A21: MADRID | B21: =empresa_ccaa!F25 -> 58428554.6 | C21: =empresa_ccaa!G25 -> 52049973.1 | D21: -0.109168908 | E21: =empresa_ccaa!K25 -> 0 | F21: =empresa_ccaa!L25 -> 0 | G21: n.a. | H21: 0 | I21: 0 | J21: 0 | L21: -0.109168908 | M21: 0 | BH21: n.a. | BL21: 0 | BM21: MADRID | BN21: n.a. | BO21: -0.109168908 | FU21: =empresa_ccaa!M25-empresa_ccaa!H25 ->  | FW21: =IF(BL21=$BL$27,1,0) -> 1
A22: MURCIA | B22: =empresa_ccaa!F26 -> 19630708.22 | C22: =empresa_ccaa!G26 -> 11242652.69 | D22: -0.4272925579 | E22: =empresa_ccaa!K26 -> 0 | F22: =empresa_ccaa!L26 -> 0 | G22: n.a. | H22: 0 | I22: 0 | J22: 0 | L22: -0.4272925579 | M22: 0 | BH22: n.a. | BL22: 0 | BM22: MURCIA | BN22: n.a. | BO22: -0.4272925579 | FU22: =empresa_ccaa!M26-empresa_ccaa!H26 ->  | FW22: =IF(BL22=$BL$27,1,0) -> 1
A23: NAVARRA | B23: =empresa_ccaa!F27 -> 11184660.71 | C23: =empresa_ccaa!G27 -> 11883383.67 | D23: 0.0624715384 | E23: =empresa_ccaa!K27 -> 0 | F23: =empresa_ccaa!L27 -> 0 | G23: n.a. | H23: 0 | I23: 0 | J23: 0 | L23: 0.0624715384 | M23: 0 | BH23: n.a. | BL23: 0 | BM23: NAVARRA | BN23: n.a. | BO23: 0.0624715384 | FU23: =empresa_ccaa!M27-empresa_ccaa!H27 ->  | FW23: =IF(BL23=$BL$27,1,0) -> 1
A24: PAIS VASCO | B24: =empresa_ccaa!F28 -> 14130050.57 | C24: =empresa_ccaa!G28 -> 14450268.9 | D24: 0.02266222132 | E24: =empresa_ccaa!K28 -> 0 | F24: =empresa_ccaa!L28 -> 0 | G24: n.a. | H24: 0 | I24: 0 | J24: 0 | L24: 0.02266222132 | M24: 0 | BH24: n.a. | BL24: 0 | BM24: PAIS VASCO | BN24: n.a. | BO24: 0.02266222132 | FU24: =empresa_ccaa!M28-empresa_ccaa!H28 ->  | FW24: =IF(BL24=$BL$27,1,0) -> 1
A25: RIOJA (LA) | B25: =empresa_ccaa!F29 -> 2469324.314 | C25: =empresa_ccaa!G29 -> 2319656.117 | D25: -0.06061099239 | E25: =empresa_ccaa!K29 -> 0 | F25: =empresa_ccaa!L29 -> 0 | G25: n.a. | H25: 0 | I25: 0 | J25: 0 | L25: -0.06061099239 | M25: 0 | BH25: n.a. | BL25: 0 | BM25: RIOJA (LA) | BN25: n.a. | BO25: -0.06061099239 | FU25: =empresa_ccaa!M29-empresa_ccaa!H29 ->  | FW25: =IF(BL25=$BL$27,1,0) -> 1
BL26: máximo | FW26: codifico=1
BL27: =MAX(BL9:BL25) -> 0 | FW27: =DMAX(BK8:BM25,BL8,FW8:FW25)*1 -> 0
J28: =I6 -> Cuota de Facturación | FV28: geo data | FW28: =VLOOKUP(1,BK8:BO25,3,0) -> 
M29: =I7 -> 2023 | FW29: el dato a buscar debe estar en la primera columna.
B30: % i.a. | F30: % i.a. | FW30: =VLOOKUP(1,BK8:BO25,4,0)*1 -> 
B31: =C7 -> 2023 | F31: =B31 -> 2023 | FW31: =VLOOKUP(1,BK8:BO25,5,0)*1 -> 
B32: Total | F32: Empresa | J32: =J5 -> iEMPRESA
M33: Ámbito
A34: Ámbito | B34: =F34 -> Nacional | F34: =J34 -> Nacional | J34: Nacional | M34: Nacional
J38: =FW28 ->  | M38: CCAA
M39: Líder para la
B40: % i.a. | F40: % i.a. | M40: Empresa
B41: =B31 -> 2023 | F41: =B41 -> 2023
B42: Total | F42: Empresa | J42: =J32 -> iEMPRESA
A44: Ámbito | B44: =F44 ->  | F44: =J44 ->  | J44: =J38 -> 
A48: Fuente: Cifras consolidadas del sector. Valores absolutos 2015-2023 y cifras de evolución de 2016 a la fecha. ASEMPLEO ©.
A49: Nota de Confidencialidad: Este informe comparativo contiene datos redondeados que son ficticeos y serán reemplazados por los que la Empresa introduzca en "empresa_ccaa".

Sheet Ayuda y Version (hidden)
G2: Versión de plantilla: | H2: 2.5

Sheet pBlock (hidden)
B4: Block Test
B5: Info1 | C5: Info2

Sheet pAccel0 (hidden)
A1: Gauge Configuration | O1: Gauge Configuration | Z1: Gauge Configuration | AK1: Gauge Configuration
F2: Decal | T2: Decal | AE2: Decal | AP2: Decal
A3: Title: | B3: =Dashboard!#REF! ->  | F3: 0 | O3: Title: | P3: =pAccel0!B3 ->  | T3: 0 | Z3: Title: | AA3: Empresa | AE3: 0 | AK3: Title: | AL3: CCAA | AP3: 0
A4: Real Value: | B4: =Dashboard!#REF! ->  | O4: Real Value: | P4: =Dashboard!I8 -> 0 | Z4: Real Value: | AA4: =Dashboard!I8 -> 0 | AK4: Real Value: | AL4: =Dashboard!FW27 -> 0
A6: Color bands | O6: Color bands | Z6: Color bands | AK6: Color bands
A7: Red: | B7: 2 | O7: Red: | P7: 2 | Z7: Red: | AA7: 2 | AK7: Red: | AL7: 2
A8: Yellow: | B8: 15 | O8: Yellow: | P8: 15 | Z8: Yellow: | AA8: 15 | AK8: Yellow: | AL8: 15
A9: Green: | B9: 23 | O9: Green: | P9: 23 | Z9: Green: | AA9: 23 | AK9: Green: | AL9: 23
A11: Advanced Parameters | O11: Advanced Parameters | Z11: Advanced Parameters | AK11: Advanced Parameters
B12: Value to 100% | C12: =IF(ISERROR((B4-F3/100)*B27),0,(B4-F3/100)*B27) -> 0 | P12: Value to 100% | Q12: =IF(ISERROR((P4-T3/100)*P27),0,(P4-T3/100)*P27) -> 0 | AA12: Value to 100% | AB12: =IF(ISERROR((AA4-AE3/100)*AA27),0,(AA4-AE3/100)*AA27) -> 0 | AL12: Value to 100% | AM12: =IF(ISERROR((AL4-AP3/100)*AL27),0,(AL4-AP3/100)*AL27) -> 0
B13: Relative value | C13: =IF(C12>100%,102%,IF(C12<0%,-2%,C12))*1.506-0.253 -> -0.253 | P13: Relative value | Q13: =IF(Q12>100%,102%,IF(Q12<0%,-2%,Q12))*1.506-0.253 -> -0.253 | AA13: Relative value | AB13: =IF(AB12>100%,102%,IF(AB12<0%,-2%,AB12))*1.506-0.253 -> -0.253 | AL13: Relative value | AM13: =IF(AM12>100%,102%,IF(AM12<0%,-2%,AM12))*1.506-0.253 -> -0.253
A15: Angle | C15: =C13*PI() -> -0.7948229414 | O15: Angle | Q15: =Q13*PI() -> -0.7948229414 | Z15: Angle | AB15: =AB13*PI() -> -0.7948229414 | AK15: Angle | AM15: =AM13*PI() -> -0.7948229414
A16: x | B16: 0 | C16: =-COS(C15) -> -0.7004111508 | O16: x | P16: 0 | Q16: =-COS(Q15) -> -0.7004111508 | Z16: x | AA16: 0 | AB16: =-COS(AB15) -> -0.7004111508 | AK16: x | AL16: 0 | AM16: =-COS(AM15) -> -0.7004111508
A17: y | B17: 0 | C17: =SIN(C15) -> -0.7137396023 | O17: y | P17: 0 | Q17: =SIN(Q15) -> -0.7137396023 | Z17: y | AA17: 0 | AB17: =SIN(AB15) -> -0.7137396023 | AK17: y | AL17: 0 | AM17: =SIN(AM15) -> -0.7137396023
D19: Value | E19: Label | R19: Value | S19: Label | AC19: Value | AD19: Label | AN19: Value | AO19: Label
C20: 70 | D20: 10 | E20: =B26+F3 -> 4 | Q20: 70 | R20: 10 | S20: =P26+T3 -> 4 | AB20: 70 | AC20: 10 | AD20: =AA26+AE3 -> 4 | AM20: 70 | AN20: 10 | AO20: =AL26+AP3 -> 4
C21: =B7*$C$20/$B$25 -> 3.5 | D21: 10 | E21: =E20+$B$26 -> 8 | Q21: =P7*$C$20/$B$25 -> 3.5 | R21: 10 | S21: =S20+$B$26 -> 8 | AB21: =AA7*$AB$20/$AA$25 -> 3.5 | AC21: 10 | AD21: =AD20+$AA$26 -> 8 | AM21: =AL7*$AM$20/$AL$25 -> 3.5 | AN21: 10 | AO21: =AO20+$AL$26 -> 8
C22: =B8*$C$20/$B$25 -> 26.25 | D22: 10 | E22: 12 | Q22: =P8*$C$20/$B$25 -> 26.25 | R22: 10 | S22: 12 | AB22: =AA8*$AB$20/$AA$25 -> 26.25 | AC22: 10 | AD22: 12 | AM22: =AL8*$AM$20/$AL$25 -> 26.25 | AN22: 10 | AO22: =AO21+$AL$26 -> 12
C23: =B9*$C$20/$B$25 -> 40.25 | D23: 10 | E23: 16 | Q23: =P9*$C$20/$B$25 -> 40.25 | R23: 10 | S23: 16 | AB23: =AA9*$AB$20/$AA$25 -> 40.25 | AC23: 10 | AD23: 16 | AM23: 40.25 | AN23: 10 | AO23: 16
A24: White | C24: 23 | D24: 10 | E24: 20 | O24: White | Q24: 23 | R24: 10 | S24: 20 | Z24: White | AB24: 23 | AC24: 10 | AD24: 20 | AK24: White | AM24: 23 | AN24: 10 | AO24: 20
A25: Total | B25: =SUM(B7:B24) -> 40 | C25: =SUM(C21:C24) -> 93 | D25: 10 | E25: 24 | O25: Total | P25: =SUM(P7:P24) -> 40 | Q25: =SUM(Q21:Q24) -> 93 | R25: 10 | S25: 24 | Z25: Total | AA25: =SUM(AA7:AA24) -> 40 | AB25: =SUM(AB21:AB24) -> 93 | AC25: 10 | AD25: 24 | AK25: Total | AL25: =SUM(AL7:AL24) -> 40 | AM25: =SUM(AM21:AM24) -> 93 | AN25: 10 | AO25: 24
A26: Increment | B26: =B25/10 -> 4 | D26: 10 | E26: 28 | O26: Increment | P26: =P25/10 -> 4 | R26: 10 | S26: 28 | Z26: Increment | AA26: =AA25/10 -> 4 | AC26: 10 | AD26: 28 | AK26: Increment | AL26: =AL25/10 -> 4 | AN26: 10 | AO26: 28
A27: Conversion | B27: =100/B25 -> 2.5 | D27: 10 | E27: 32 | O27: Conversion | P27: =100/P25 -> 2.5 | R27: 10 | S27: 32 | Z27: Conversion | AA27: =100/AA25 -> 2.5 | AC27: 10 | AD27: 32 | AK27: Conversion | AL27: =100/AL25 -> 2.5 | AN27: 10 | AO27: 32
D28: 10 | E28: 36 | R28: 10 | S28: 36 | AC28: 10 | AD28: 36 | AN28: 10 | AO28: 36
D29: 10 | E29: 40 | R29: 10 | S29: 40 | AC29: 10 | AD29: 40 | AN29: 10 | AO29: 40
D30: 33 | E30: =F3 -> 0 | R30: 33 | S30: =T3 -> 0 | AC30: 33 | AD30: =AE3 -> 0 | AN30: 33 | AO30: =AP3 -> 0

Sheet pAccel1 (hidden)
A1: Gauge Configuration | Q1: Gauge Configuration | X1: Gauge Configuration | AE1: Gauge Configuration | AL1: Gauge Configuration | AS1: Gauge Configuration | AZ1: Gauge Configuration | BG1: Gauge Configuration
F2: Decal | V2: Decal | AC2: Decal | AJ2: Decal | AQ2: Decal | AX2: Decal | BE2: Decal | BL2: Decal
A3: Title: | B3: CPDs | F3: 100 | Q3: Title: | R3: Facturación | V3: 100 | X3: Title: | Y3: CPDs | AC3: 100 | AE3: Title: | AF3: Facturación | AJ3: 100 | AL3: Title: | AM3: Facturación | AQ3: 100 | AS3: Title: | AT3: Facturación | AX3: 100 | AZ3: Title: | BA3: Facturación | BE3: 100 | BG3: Title: | BH3: Facturación | BL3: 100
A4: Real Value: | B4: =Dashboard!#REF! ->  | C4: =Dashboard!#REF! ->  | Q4: Real Value: | R4: =Dashboard!#REF! ->  | X4: Real Value: | Y4: =Dashboard!#REF! ->  | AE4: Real Value: | AF4: =Dashboard!#REF! ->  | AL4: Real Value: | AM4: =Dashboard!D8 -> -0.1417292019 | AS4: Real Value: | AT4: =Dashboard!$G$8 -> n.a. | AZ4: Real Value: | BA4: =Dashboard!FW31 ->  | BG4: Real Value: | BH4: =Dashboard!FW30 -> 
A6: Color bands
A7: Red: | B7: -50
A8: Yellow: | B8: 0
A9: Green: | B9: 50
A11: Advanced Parameters | Q11: Advanced Parameters | X11: Advanced Parameters | AE11: Advanced Parameters | AL11: Advanced Parameters | AS11: Advanced Parameters | AZ11: Advanced Parameters | BG11: Advanced Parameters
B12: Value to 100% | C12: =IF(ISERROR((B4-F3/100)*B27),0,(B4-F3/100)*B27) -> 0 | E12: =IF(ISERROR((C4-F3/100)*B27),0,(C4-F3/100)*B27) -> 0 | R12: Value to 100% | S12: =IF(ISERROR((R4-V3/100)*R27),0,(R4-V3/100)*R27) -> 0 | Y12: Value to 100% | Z12: =IF(ISERROR((Y4-AC3/100)*Y27),0,(Y4-AC3/100)*Y27) -> 0 | AF12: Value to 100% | AG12: =IF(ISERROR((AF4-AJ3/100)*AF27),0,(AF4-AJ3/100)*AF27) -> 0 | AM12: Value to 100% | AN12: =IF(ISERROR((AM4-AQ3/100)*AM27),0,(AM4-AQ3/100)*AM27) -> -2.283458404 | AT12: Value to 100% | AU12: =IF(ISERROR((AT4-AX3/100)*AT27),0,(AT4-AX3/100)*AT27) -> 0 | BA12: Value to 100% | BB12: =IF(ISERROR((BA4-BE3/100)*BA27),0,(BA4-BE3/100)*BA27) -> 0 | BH12: Value to 100% | BI12: =IF(ISERROR((BH4-BL3/100)*BH27),0,(BH4-BL3/100)*BH27) -> 0
B13: Relative value | C13: =IF(B4<-100%,-100%,IF(B4>100%,100%,2*B4/1)) ->  | D13: ojo1, todo en porcentaje, por 2, y con 1 al final en lugar de 100. | E13: =IF(C4<-100%,-100%,IF(C4>100%,100%,2*C4/1)) ->  | I13: Todos los negritas tienen dato 50, en lugar de 100 para que la escala recorra menos. | R13: Relative value | S13: =IF(R4<-100%,-100%,IF(R4>100%,100%,2*R4/1)) ->  | Y13: Relative value | Z13: =IF(Y4<-100%,-100%,IF(Y4>100%,100%,2*Y4/1)) ->  | AF13: Relative value | AG13: =IF(AF4<-100%,-100%,IF(AF4>100%,100%,2*AF4/1)) ->  | AM13: Relative value | AN13: =IF(AM4<-100%,-100%,IF(AM4>100%,100%,2*AM4/1)) -> -0.2834584038 | AT13: Relative value | AU13: =IF(AT4<-100%,-100%,IF(AT4>100%,100%,2*AT4/1)) -> 1 | BA13: Relative value | BB13: =IF(BA4<-100%,-100%,IF(BA4>100%,100%,2*BA4/1)) ->  | BH13: Relative value | BI13: =IF(BH4<-100%,-100%,IF(BH4>100%,100%,2*BH4/1)) -> 
A15: Angle | C15: =C13*PI()/2 ->  | E15: =E13*PI()/2 ->  | Q15: Angle | S15: =S13*PI()/2 ->  | X15: Angle | Z15: =Z13*PI()/2 ->  | AE15: Angle | AG15: =AG13*PI()/2 ->  | AL15: Angle | AN15: =AN13*PI()/2 -> -0.4452554195 | AS15: Angle | AU15: =AU13*PI()/2 -> 1.570796327 | AZ15: Angle | BB15: =BB13*PI()/2 ->  | BG15: Angle | BI15: =BI13*PI()/2 -> 
A16: x | B16: 0 | C16: =SIN(C15) ->  | D16: =B16 -> 0 | E16: =SIN(E15) ->  | Q16: x | R16: 0 | S16: =SIN(S15) ->  | X16: x | Y16: 0 | Z16: =SIN(Z15) ->  | AE16: x | AF16: 0 | AG16: =SIN(AG15) ->  | AL16: x | AM16: 0 | AN16: =SIN(AN15) -> -0.4306884106 | AS16: x | AT16: 0 | AU16: =SIN(AU15) -> 1 | AZ16: x | BA16: 0 | BB16: =SIN(BB15) ->  | BG16: x | BH16: 0 | BI16: =SIN(BI15) -> 
A17: y | B17: 0 | C17: =-COS(C15) ->  | D17: =B17 -> 0 | E17: =-COS(E15) ->  | Q17: y | R17: 0 | S17: =-COS(S15) ->  | X17: y | Y17: 0 | Z17: =-COS(Z15) ->  | AE17: y | AF17: 0 | AG17: =-COS(AG15) ->  | AL17: y | AM17: 0 | AN17: =-COS(AN15) -> -0.9025006886 | AS17: y | AT17: 0 | AU17: =-COS(AU15) -> -6.125742275e-17 | AZ17: y | BA17: 0 | BB17: =-COS(BB15) ->  | BG17: y | BH17: 0 | BI17: =-COS(BI15) -> 
D19: Value | E19: Label
C20: 50 | D20: 0 | E20: 50
C21: =E21 -> 40 | D21: =D31/D33 -> 5 | E21: =E20+$B$26 -> 40
C22: =E22 -> 30 | D22: =D21 -> 5 | E22: =E21+$B$26 -> 30
C23: 20 | D23: =D22 -> 5 | E23: 20
A24: White | C24: 10 | D24: 5 | E24: 10 | Q24: White | X24: White | AE24: White | AL24: White | AS24: White | AZ24: White | BG24: White
A25: Total | B25: 50 | C25: 0 | D25: 5 | E25: 0 | Q25: Total | R25: 50 | X25: Total | Y25: 50 | AE25: Total | AF25: 50 | AL25: Total | AM25: 50 | AS25: Total | AT25: 50 | AZ25: Total | BA25: 50 | BG25: Total | BH25: 50
A26: Increment | B26: -10 | C26: -10 | D26: 5 | E26: -10 | Q26: Increment | R26: -10 | X26: Increment | Y26: -10 | AE26: Increment | AF26: -10 | AL26: Increment | AM26: -10 | AS26: Increment | AT26: -10 | AZ26: Increment | BA26: -10 | BG26: Increment | BH26: -10
A27: Conversion | B27: =100/B25 -> 2 | C27: -20 | D27: 5 | E27: -20 | Q27: Conversion | R27: =100/R25 -> 2 | X27: Conversion | Y27: =100/Y25 -> 2 | AE27: Conversion | AF27: =100/AF25 -> 2 | AL27: Conversion | AM27: =100/AM25 -> 2 | AS27: Conversion | AT27: =100/AT25 -> 2 | AZ27: Conversion | BA27: =100/BA25 -> 2 | BG27: Conversion | BH27: =100/BH25 -> 2
C28: -30 | D28: 5 | E28: -30
C29: -40 | D29: 5 | E29: -40
C30: -50 | D30: 5 | E30: -50
D31: 50
D33: 10
D35: =SUM(D20:D30) -> 50

Sheet empresa_ccaa
M3: =Dashboard!M3 -> 2023
M4: =Dashboard!M4 -> ENERO
K5: Empresa | L5: =L9 -> iEMPRESA
C9: Facturación, € | F9: ASEMPLEO | G9: ASEMPLEO | K9: Empresa = | L9: iEMPRESA | ES9: check
C10: Dato acumulado a | E10: =M4 -> ENERO | F10: =Dashboard!B7 -> 2022 | G10: =Dashboard!C7 -> 2023 | J10: Facturación | K10: =F10 -> 2022 | L10: =G10 -> 2023 | ES10: =L12/K12-1 -> 
H11: Estructura (%) | J11: Datos acumulados | M11: Estructura (%) | ES11: =L13/K13-1 -> 
F12: =E130 -> 341571611.5 | G12: =B130 -> 293160939.6 | H12: =G12/G$12 -> 1 | I12: TOTAL | K12: =SUM(K13:K29) -> 0 | L12: =SUM(L13:L29) -> 0 | M12: =L12/L$12 ->  | ES12: =L14/K14-1 -> 
F13: =E131 -> 31994791.66 | G13: =B131 -> 25447253.12 | H13: =G13/G$12 -> 0.0868030139 | I13: ANDALUCIA | M13: =L13/L$12 ->  | ES13: =L15/K15-1 -> 
F14: =E132 -> 18279728.4 | G14: =B132 -> 15746627.16 | H14: =G14/G$12 -> 0.0537132511 | I14: ARAGON | M14: =L14/L$12 ->  | ES14: =L16/K16-1 -> 
F15: =E133 -> 6241898.319 | G15: =B133 -> 5006868.253 | H15: =G15/G$12 -> 0.01707890642 | I15: ASTURIAS | M15: =L15/L$12 ->  | ES15: =L17/K17-1 -> 
F16: =E134 -> 890355.6269 | G16: =B134 -> 1013744.442 | H16: 0.003457979235 | I16: BALEARES | ES16: =L18/K18-1 -> 
F17: =E135 -> 6338796.559 | G17: =B135 -> 8024745.574 | H17: 0.02737317456 | I17: CANARIAS | ES17: =L19/K19-1 -> 
F18: =E136 -> 8112691.344 | G18: =B136 -> 4634863.366 | H18: 0.01580996218 | I18: CANTABRIA | ES18: =L20/K20-1 -> 
F19: =E137 -> 24919682.69 | G19: =B137 -> 21531778.52 | H19: 0.07344695563 | I19: CASTILLA-LA MANCHA | ES19: =L21/K21-1 -> 
F20: =E138 -> 17280448.7 | G20: =B138 -> 18316912.31 | H20: 0.06248073954 | I20: CASTILLA Y LEÓN | ES20: =L22/K22-1 -> 
F21: =E139 -> 74367125.12 | G21: =B139 -> 64251258.34 | H21: 0.2191671865 | I21: CATALUÑA | M21: =L21/L$12 ->  | ES21: =L23/K23-1 -> 
F22: =E140 -> 31732999.55 | G22: =B140 -> 22313844.6 | H22: 0.07611465781 | I22: COMUNIDAD VALENCIANA | ES22: =L24/K24-1 -> 
F23: =E141 -> 3460957.673 | G23: =B141 -> 2877148.625 | H23: 0.009814229102 | I23: EXTREMADURA | ES23: =L25/K25-1 -> 
F24: =E142 -> 12108837.42 | G24: =B142 -> 12049960.81 | H24: 0.04110356865 | I24: GALICIA | ES24: =L26/K26-1 -> 
F25: =E143 -> 58428554.6 | G25: =B143 -> 52049973.1 | H25: 0.1775474358 | I25: MADRID | ES25: =L27/K27-1 -> 
F26: =E144 -> 19630708.22 | G26: =B144 -> 11242652.69 | H26: 0.03834976347 | I26: MURCIA | ES26: =L28/K28-1 -> 
F27: =E145 -> 11184660.71 | G27: =B145 -> 11883383.67 | H27: 0.04053535812 | I27: NAVARRA | ES27: =L29/K29-1 -> 
F28: =E146 -> 14130050.57 | G28: =B146 -> 14450268.9 | H28: 0.0492912491 | I28: PAIS VASCO
F29: =E147 -> 2469324.314 | G29: =B147 -> 2319656.117 | H29: 0.007912568843 | I29: RIOJA (LA)
A31: Fuente: Cifras consolidadas del sector. ASEMPLEO ©.
A32: Nota de Confidencialidad: Este informe comparativo se genera con los datos propios de la Empresa.
A125: D03: | D125: D03: | G125: D03 : | H125: Variación Interanual (%)
A126: MES: | B126: ACUMULADO A LA FECHA | D126: =A126 -> MES: | E126: =B126 -> ACUMULADO A LA FECHA | G126: =D126 -> MES: | H126: Tasa % i.a.
B128: Facturación | E128: Facturación | H128: Facturación
I129: check
A130: TOTAL | B130: 293160939.6 | D130: TOTAL | E130: 341571611.5 | G130: TOTAL | H130: -0.1417292019 | I130: =B130/E130-1 -> -0.1417292019
A131: ANDALUCIA | B131: 25447253.12 | D131: ANDALUCIA | E131: 31994791.66 | G131: ANDALUCIA | H131: -0.2046438875 | I131: =B131/E131-1 -> -0.2046438875
A132: ARAGON | B132: 15746627.16 | D132: ARAGON | E132: 18279728.4 | G132: ARAGON | H132: -0.1385743366 | I132: -0.1385743366
A133: ASTURIAS | B133: 5006868.253 | D133: ASTURIAS | E133: 6241898.319 | G133: ASTURIAS | H133: -0.1978612921 | I133: -0.1978612921
A134: BALEARES | B134: 1013744.442 | D134: BALEARES | E134: 890355.6269 | G134: BALEARES | H134: 0.1385837421 | I134: 0.1385837421
A135: CANARIAS | B135: 8024745.574 | D135: CANARIAS | E135: 6338796.559 | G135: CANARIAS | H135: 0.2659730438 | I135: 0.2659730438
A136: CANTABRIA | B136: 4634863.366 | D136: CANTABRIA | E136: 8112691.344 | G136: CANTABRIA | H136: -0.4286897936 | I136: -0.4286897936
A137: CASTILLA-LA MANCHA | B137: 21531778.52 | D137: CASTILLA-LA MANCHA | E137: 24919682.69 | G137: CASTILLA-LA MANCHA | H137: -0.1359529416 | I137: -0.1359529416
A138: CASTILLA Y LEÓN | B138: 18316912.31 | D138: CASTILLA Y LEÓN | E138: 17280448.7 | G138: CASTILLA Y LEÓN | H138: 0.05997897526 | I138: 0.05997897526
A139: CATALUÑA | B139: 64251258.34 | D139: CATALUÑA | E139: 74367125.12 | G139: CATALUÑA | H139: -0.1360260568 | I139: -0.1360260568
A140: COMUNIDAD VALENCIANA | B140: 22313844.6 | D140: COMUNIDAD VALENCIANA | E140: 31732999.55 | G140: COMUNIDAD VALENCIANA | H140: -0.2968252318 | I140: -0.2968252318
A141: EXTREMADURA | B141: 2877148.625 | D141: EXTREMADURA | E141: 3460957.673 | G141: EXTREMADURA | H141: -0.1686842496 | I141: -0.1686842496
A142: GALICIA | B142: 12049960.81 | D142: GALICIA | E142: 12108837.42 | G142: GALICIA | H142: -0.004862284573 | I142: -0.004862284573
A143: MADRID | B143: 52049973.1 | D143: MADRID | E143: 58428554.6 | G143: MADRID | H143: -0.109168908 | I143: -0.109168908
A144: MURCIA | B144: 11242652.69 | D144: MURCIA | E144: 19630708.22 | G144: MURCIA | H144: -0.4272925579 | I144: -0.4272925579
A145: NAVARRA | B145: 11883383.67 | D145: NAVARRA | E145: 11184660.71 | G145: NAVARRA | H145: 0.0624715384 | I145: 0.0624715384
A146: PAIS VASCO | B146: 14450268.9 | D146: PAIS VASCO | E146: 14130050.57 | G146: PAIS VASCO | H146: 0.02266222132 | I146: 0.02266222132
A147: RIOJA (LA) | B147: 2319656.117 | D147: RIOJA (LA) | E147: 2469324.314 | G147: RIOJA (LA) | H147: -0.06061099239 | I147: =B147/E147-1 -> -0.06061099239
A148: Ceuta y Melilla | D148: Ceuta y Melilla | G148: Ceuta y Melilla
